fUST/lending_fUST_20240327
["ID","MTS","AMOUNT","RATE_DAILY","PERIOD"]
[320697219,1711503048975,-502.57,0.00024657,2]
[320697221,1711503048984,-500.0,0.00024657,2]
[320697223,1711503048993,-523.21,0.00024657,2]
[320697225,1711503049004,-760.56,0.00024657,2]
[320697227,1711503049014,-1243.72,0.00024657,2]
[320697228,1711503049023,-825.38,0.00024657,2]
[320697230,1711503049034,-500.0,0.00024657,2]
[320697232,1711503049043,-500.0,0.00024658,2]
[320697234,1711503049052,-380.0,0.00024658,2]
[320697236,1711503049061,-546.43,0.00024712,2]
[320697238,1711503049071,-546.43,0.00024767,2]
[320697240,1711503049080,-546.43,0.00024821,2]
[320697242,1711503049090,-546.43,0.00024876,2]
[320697244,1711503049099,-1965.45386,0.000249,2]
[320697246,1711503049108,-546.43,0.00024931,2]
[320697248,1711503049117,-546.43,0.00024986,2]
[320697250,1711503049126,-155.01240099,0.00025,2]
[320697252,1711503049134,-35505.38504344,0.00025,2]
[320697267,1711503049271,-500.0,0.00024657,2]
[320697269,1711503049283,-2254.97486006,0.00025,2]
[320697477,1711503602142,-155.01240099,0.00018352,2]
[320697478,1711503602165,-7995.62794,0.00018353,2]
[320697479,1711503767367,8426.79901068,0.0002111,4]
[320697486,1711503971493,15465.40765114,0.00025091,30]
[320697550,1711504237961,-166.41519,0.00018534,2]
[320697551,1711504237971,-996.86400302,0.00019076,2]
[320697552,1711504237981,-607.81854018,0.00019176,2]
[320697553,1711504237991,-155.34299006,0.00019176,2]
[320697554,1711504238001,-170.5512174,0.00019177,2]
[320697555,1711504238011,-194.76524757,0.00019177,2]
[320697556,1711504238020,-500.0,0.00019178,2]
[320697557,1711504238029,-500.0,0.00019178,2]
[320697558,1711504238039,-500.0,0.00019178,2]
[320697559,1711504238049,-500.0,0.00019178,2]
[320697560,1711504238059,-500.0,0.00019178,2]
[320697561,1711504238069,-500.0,0.00019178,2]
[320697563,1711504238078,-514.41,0.00019178,2]
[320697564,1711504238088,-500.0,0.00019178,2]
[320697566,1711504238098,-500.0,0.00019178,2]
[320697567,1711504238107,-501.01892384,0.00019178,2]
[320697568,1711504238117,-500.81577227,0.00019178,2]
[320697569,1711504238127,-273.55098273,0.00019178,2]
[320697602,1711504243122,-226.44901727,0.00019178,2]
[320697603,1711504243132,-500.0,0.00019178,2]
[320697604,1711504243142,-500.0,0.00019178,2]
[320697605,1711504243152,-500.0,0.00019178,2]
[320697608,1711504243172,-778.02,0.00019178,2]
[320697609,1711504243183,-500.0,0.00019178,2]
[320697610,1711504243193,-500.0,0.00019178,2]
[320697611,1711504243203,-511.96,0.00019178,2]
[320697612,1711504243213,-500.0,0.00019178,2]
[320697613,1711504243222,-500.0,0.00019178,2]
[320697614,1711504243232,-500.0,0.00019178,2]
[320697615,1711504243242,-500.26253385,0.00019178,2]
[320697616,1711504243251,-500.0,0.00019178,2]
[320697617,1711504243261,-500.0,0.00019178,2]
[320697618,1711504243270,-55.66605825,0.00019178,2]
[320697633,1711504688487,-174.38536353,0.00019078,2]
[320697634,1711504688516,-500.0,0.00019178,2]
[320697635,1711504688540,-500.81949895,0.00019178,2]
[320697636,1711504688563,-500.0,0.00019178,2]
[320697637,1711504688584,-500.0,0.00019178,2]
[320697638,1711504688606,-332.40256798,0.00019178,2]
[320697639,1711504688630,-500.0,0.00019178,2]
[320697640,1711504688652,-500.52680985,0.00019178,2]
[320697641,1711504688673,-195.71051305,0.00019178,2]
[320697642,1711504688695,-518.05,0.00019178,2]
[320697643,1711504688720,-500.0,0.00019178,2]
[320697644,1711504688741,-500.0,0.00019178,2]
[320697645,1711504688766,-500.0,0.00019178,2]
[320697646,1711504688788,-810.78,0.00019178,2]
[320697647,1711504688810,-500.0,0.00019178,2]
[320697648,1711504688832,-500.0,0.00019178,2]
[320697649,1711504688855,-500.0,0.00019178,2]
[320697650,1711504688879,-500.0,0.00019178,2]
[320697651,1711504688901,-500.0,0.00019178,2]
[320697652,1711504688923,-500.54397557,0.00019178,2]
[320697653,1711504688945,-500.83025064,0.00019178,2]
[320697654,1711504688970,-500.0,0.00019178,2]
[320697655,1711504688996,-500.0,0.00019178,2]
[320697656,1711504689021,-500.0,0.00019178,2]
[320697657,1711504689044,-508.6166511,0.00019178,2]
[320697658,1711504689067,-500.0,0.00019178,2]
[320697659,1711504689089,-500.0,0.00019178,2]
[320697660,1711504689112,-500.0,0.00019178,2]
[320697661,1711504689134,-500.0,0.00019178,2]
[320697662,1711504689156,-500.0,0.00019178,2]
[320697663,1711504689178,-583.35,0.00019178,2]
[320697664,1711504689200,-500.0,0.00019178,2]
[320697665,1711504689223,-500.0,0.00019178,2]
[320697666,1711504689245,-500.0,0.00019178,2]
[320697667,1711504689266,-500.0,0.00019178,2]
[320697668,1711504689288,-500.0,0.00019178,2]
[320697669,1711504689310,-500.0,0.00019178,2]
[320697670,1711504689332,-500.0,0.00019178,2]
[320697671,1711504689353,-500.0,0.00019178,2]
[320697672,1711504689375,-500.0,0.00019178,2]
[320697673,1711504689396,-501.79620217,0.00019178,2]
[320697674,1711504689418,-2084.81,0.00019178,2]
[320697675,1711504689441,-500.0,0.00019178,2]
[320697676,1711504689464,-500.0,0.00019178,2]
[320697677,1711504689486,-500.0,0.00019178,2]
[320697678,1711504689507,-500.0,0.00019178,2]
[320697679,1711504689529,-500.0,0.00019178,2]
[320697680,1711504689550,-500.0,0.00019178,2]
[320697681,1711504689572,-194.73253016,0.00019178,2]
[320697682,1711504689594,-657.04,0.00019178,2]
[320697683,1711504689618,-722.21,0.00019178,2]
[320697684,1711504689640,-500.0,0.00019178,2]
[320697685,1711504689663,-500.0,0.00019178,2]
[320697686,1711504689686,-500.87865886,0.00019178,2]
[320697687,1711504689709,-563.38,0.00019178,2]
[320697688,1711504689731,-500.0,0.00019178,2]
[320697689,1711504689754,-500.0,0.00019178,2]
[320697690,1711504689776,-500.40997119,0.00019178,2]
[320697691,1711504689798,-500.0,0.00019178,2]
[320697692,1711504689822,-500.0,0.00019178,2]
[320697693,1711504689845,-500.0,0.00019178,2]
[320697694,1711504689867,-500.0,0.00019178,2]
[320697695,1711504689890,-383.45950067,0.00019178,2]
[320697696,1711504689912,-500.0,0.00019178,2]
[320697697,1711504689935,-500.48362503,0.00019178,2]
[320697698,1711504689956,-500.0,0.00019178,2]
[320697699,1711504689982,-500.0,0.00019178,2]
[320697700,1711504690003,-500.0,0.00019178,2]
[320697701,1711504690026,-500.0,0.00019178,2]
[320697702,1711504690048,-500.0,0.00019178,2]
[320697703,1711504690072,-500.0,0.00019178,2]
[320697704,1711504690094,-500.0,0.00019178,2]
[320697705,1711504690116,-500.0,0.00019178,2]
[320697706,1711504690137,-500.0,0.00019178,2]
[320697707,1711504690160,-500.0,0.00019178,2]
[320697708,1711504690183,-500.0,0.00019178,2]
[320697709,1711504690206,-500.0,0.00019178,2]
[320697710,1711504690227,-500.0,0.00019178,2]
[320697711,1711504690250,-500.0,0.00019178,2]
[320697712,1711504690273,-1263.78,0.00019178,2]
[320697713,1711504690296,-500.0,0.00019178,2]
[320697714,1711504690319,-500.0,0.00019178,2]
[320697715,1711504690342,-500.0,0.00019178,2]
[320697716,1711504690365,-500.95935828,0.00019178,2]
[320697717,1711504690387,-745.6,0.00019178,2]
[320697718,1711504690411,-552.47,0.00019178,2]
[320697719,1711504690433,-500.0,0.00019178,2]
[320697720,1711504690457,-500.0,0.00019178,2]
[320697721,1711504690480,-500.0,0.00019178,2]
[320697722,1711504690502,-501.87248824,0.00019178,2]
[320697723,1711504690523,-500.42629942,0.00019178,2]
[320697724,1711504690546,-831.92,0.00019178,2]
[320697725,1711504690568,-500.0,0.00019178,2]
[320697726,1711504690591,-500.0,0.00019178,2]
[320697727,1711504690613,-500.0,0.00019178,2]
[320697728,1711504690635,-500.0,0.00019178,2]
[320697729,1711504690656,-500.0,0.00019178,2]
[320697730,1711504690679,-518.81891191,0.00019178,2]
[320697731,1711504690701,-500.0,0.00019178,2]
[320697732,1711504690723,-500.0,0.00019178,2]
[320697733,1711504690857,-500.0,0.00019178,2]
[320697734,1711504690881,-500.0,0.00019178,2]
[320697735,1711504690905,-1088.26,0.00019178,2]
[320697736,1711504690927,-1036.93,0.00019178,2]
[320697737,1711504690951,-500.0,0.00019178,2]
[320697738,1711504690973,-500.0,0.00019178,2]
[320697739,1711504690999,-23755.24,0.00019178,2]
[320697740,1711504691021,-501.02672089,0.00019178,2]
[320697741,1711504691043,-2027.05,0.00019178,2]
[320697742,1711504691065,-500.0,0.00019178,2]
[320697743,1711504691087,-500.0,0.00019178,2]
[320697744,1711504691108,-1623.73,0.00019178,2]
[320697745,1711504691131,-500.0,0.00019178,2]
[320697746,1711504691153,-500.88060108,0.00019178,2]
[320697747,1711504691176,-500.0,0.00019178,2]
[320697748,1711504691199,-5786.37,0.00019178,2]
[320697749,1711504691221,-956.09,0.00019178,2]
[320697750,1711504691243,-500.0,0.00019178,2]
[320697751,1711504691264,-500.0,0.00019178,2]
[320697752,1711504691286,-554.27,0.00019178,2]
[320697753,1711504691308,-1870.58,0.00019178,2]
[320697754,1711504691330,-3925.17,0.00019178,2]
[320697755,1711504691353,-1689.19,0.00019178,2]
[320697756,1711504691374,-4816.12,0.00019178,2]
[320697757,1711504691397,-532.48,0.00019178,2]
[320697758,1711504691420,-500.0,0.00019178,2]
[320697759,1711504691443,-500.0,0.00019178,2]
[320697760,1711504691467,-500.0,0.00019178,2]
[320697761,1711504691490,-25480.76,0.00019178,2]
[320697762,1711504691513,-1611.53,0.00019178,2]
[320697763,1711504691536,-423.49853491,0.00019178,2]
[320697764,1711504691559,-500.0,0.00019178,2]
[320697765,1711504691581,-501.0,0.00019178,2]
[320697766,1711504691604,-685.63,0.00019178,2]
[320697767,1711504691626,-500.0,0.00019178,2]
[320697768,1711504691648,-500.7303267,0.00019178,2]
[320697769,1711504691670,-500.0,0.00019178,2]
[320697770,1711504691692,-544.65,0.00019178,2]
[320697771,1711504691714,-500.0,0.00019178,2]
[320697772,1711504691737,-500.0,0.00019178,2]
[320697773,1711504691759,-1019.98,0.00019178,2]
[320697774,1711504691781,-500.0,0.00019178,2]
[320697775,1711504691803,-500.0,0.00019178,2]
[320697776,1711504691825,-606.75,0.00019178,2]
[320697777,1711504691847,-8220.79,0.00019178,2]
[320697778,1711504691869,-4606.3,0.00019178,2]
[320697779,1711504691889,-500.0,0.00019178,2]
[320697780,1711504691911,-3145.13,0.00019178,2]
[320697781,1711504691933,-1752.14,0.00019178,2]
[320697782,1711504691956,-621.36,0.00019178,2]
[320697783,1711504691982,-511.09,0.00019178,2]
[320697784,1711504692004,-500.0,0.00019178,2]
[320697785,1711504692027,-3911.71,0.00019178,2]
[320697786,1711504692050,-500.0,0.00019178,2]
[320697787,1711504692071,-501.52272395,0.00019178,2]
[320697788,1711504692093,-2117.12,0.00019178,2]
[320697789,1711504692115,-500.0,0.00019178,2]
[320697790,1711504692137,-510.97328529,0.00019178,2]
[320697791,1711504692160,-2234.84,0.00019178,2]
[320697792,1711504692183,-500.0,0.00019178,2]
[320697793,1711504692206,-500.0,0.00019178,2]
[320697794,1711504692227,-500.0,0.00019178,2]
[320697795,1711504692249,-500.0,0.00019178,2]
[320697796,1711504692272,-500.0,0.00019178,2]
[320697797,1711504692293,-500.0,0.00019178,2]
[320697798,1711504692315,-500.0,0.00019178,2]
[320697799,1711504692336,-500.0,0.00019178,2]
[320697800,1711504692358,-500.0,0.00019178,2]
[320697801,1711504692380,-665.49,0.00019178,2]
[320697802,1711504692401,-500.0,0.00019178,2]
[320697803,1711504692425,-500.0,0.00019178,2]
[320697804,1711504692447,-161.26680647,0.00019178,2]
[320697805,1711504725105,-234.68602946,0.00019177,2]
[320697806,1711504725130,-338.73319353,0.00019178,2]
[320697807,1711504725153,-500.0,0.00019178,2]
[320697808,1711504725176,-500.0,0.00019178,2]
[320697809,1711504725198,-500.0,0.00019178,2]
[320697810,1711504725222,-500.0,0.00019178,2]
[320697811,1711504725247,-5545.27,0.00019178,2]
[320697812,1711504725270,-500.81439127,0.00019178,2]
[320697813,1711504725292,-500.57462289,0.00019178,2]
[320697814,1711504725315,-1085.16,0.00019178,2]
[320697815,1711504725337,-520.76839943,0.00019178,2]
[320697816,1711504725360,-979.93,0.00019178,2]
[320697817,1711504725382,-335.65217,0.00019178,2]
[320698060,1711505444913,-174.38536353,0.00019078,2]
[320698061,1711505444923,-457.94269439,0.00019078,2]
[320698062,1711505444931,-500.0,0.00019178,2]
[320698063,1711505444941,-500.36756357,0.00019178,2]
[320698064,1711505444950,-469.8942571,0.00019178,2]
[320698065,1711505444960,-500.0,0.00019178,2]
[320698066,1711505444969,-500.0,0.00019178,2]
[320698067,1711505444978,-500.0,0.00019178,2]
[320698068,1711505444987,-777.0,0.00019178,2]
[320698069,1711505444996,-500.33770542,0.00019178,2]
[320698070,1711505445006,-500.0,0.00019178,2]
[320698071,1711505445015,-500.0,0.00019178,2]
[320698072,1711505445024,-500.0,0.00019178,2]
[320698073,1711505445033,-527.4819515,0.00019178,2]
[320698074,1711505445042,-503.24260449,0.00019178,2]
[320698075,1711505445053,-501.75733679,0.00019178,2]
[320698076,1711505445063,-500.0,0.00019178,2]
[320698077,1711505445072,-500.0,0.00019178,2]
[320698078,1711505445081,-503.1585545,0.00019178,2]
[320698079,1711505445090,-500.64964517,0.00019178,2]
[320698080,1711505445099,-592.04,0.00019178,2]
[320698081,1711505445108,-500.0,0.00019178,2]
[320698082,1711505445117,-500.0,0.00019178,2]
[320698083,1711505445127,-500.0,0.00019178,2]
[320698084,1711505445136,-519.60171274,0.00019178,2]
[320698085,1711505445147,-500.0,0.00019178,2]
[320698086,1711505445156,-559.04,0.00019178,2]
[320698087,1711505445166,-500.0,0.00019178,2]
[320698088,1711505445175,-500.0,0.00019178,2]
[320698089,1711505445185,-500.0,0.00019178,2]
[320698090,1711505445197,-500.0,0.00019178,2]
[320698091,1711505445206,-1211.12,0.00019178,2]
[320698092,1711505445216,-500.0,0.00019178,2]
[320698093,1711505445225,-500.69749497,0.00019178,2]
[320698094,1711505445237,-500.0,0.00019178,2]
[320698095,1711505445246,-500.0,0.00019178,2]
[320698096,1711505445255,-500.0,0.00019178,2]
[320698097,1711505445265,-500.0,0.00019178,2]
[320698098,1711505445275,-500.0,0.00019178,2]
[320698099,1711505445284,-500.0,0.00019178,2]
[320698100,1711505445293,-1039.95,0.00019178,2]
[320698101,1711505445305,-500.0,0.00019178,2]
[320698102,1711505445314,-1682.96,0.00019178,2]
[320698103,1711505445323,-500.97777492,0.00019178,2]
[320698104,1711505445333,-26039.82,0.00019178,2]
[320698105,1711505445342,-939.1,0.00019178,2]
[320698106,1711505445350,-4015.64,0.00019178,2]
[320698107,1711505445371,-1722.72,0.00019178,2]
[320698108,1711505445380,-500.0,0.00019178,2]
[320698109,1711505445389,-500.0,0.00019178,2]
[320698110,1711505445398,-1718.95,0.00019178,2]
[320698111,1711505445407,-500.21304117,0.00019178,2]
[320698112,1711505445417,-177.24122179,0.00019178,2]
[320698113,1711505445426,-509.96955988,0.00019178,2]
[320698114,1711505445435,-500.0,0.00019178,2]
[320698115,1711505445444,-500.75560936,0.00019178,2]
[320698116,1711505445453,-8430.98,0.00019178,2]
[320698117,1711505445462,-2151.67,0.00019178,2]
[320698118,1711505445472,-500.0,0.00019178,2]
[320698119,1711505445481,-2302.73,0.00019178,2]
[320698120,1711505445490,-524.23,0.00019178,2]
[320698121,1711505445500,-500.0,0.00019178,2]
[320698122,1711505445509,-500.0,0.00019178,2]
[320698123,1711505445518,-501.04461024,0.00019178,2]
[320698124,1711505445528,-687.8,0.00019178,2]
[320698125,1711505445538,-500.0,0.00019178,2]
[320698126,1711505445547,-1082.34,0.00019178,2]
[320698127,1711505445558,-500.0,0.00019178,2]
[320698128,1711505445567,-1795.46948296,0.00019178,2]
[320698129,1711505445580,-2742.99509319,0.00019178,2]
[320698145,1711505712587,10000.0,0.00018418,2]
[320698146,1711505721945,10000.0,0.00018418,2]
[320698147,1711505736650,5418.69,0.00018418,2]
[320698644,1711507840420,1648.0189195,0.0002111,4]
[320698665,1711507840610,-1773.012447,0.00018423,2]
[320698667,1711507840620,-1746.887553,0.00019176,2]
[320698946,1711507843644,-333.38883997,0.00019176,2]
[320699131,1711507856274,3383.39305631,0.0002111,4]
[320699143,1711508720615,162.85974,0.00018177,2]
[320699147,1711508844236,35012.7772885,0.00025111,120]
[320699189,1711509032654,-305.24199337,0.00018899,2]
[320699191,1711509032664,-383.96895919,0.000189,2]
[320699192,1711509032673,-927.39599113,0.00019078,2]
[320699318,1711509038629,-156.83333079,0.00019078,2]
[320699320,1711509038639,-2412.89120094,0.00019176,2]
[320699322,1711509038651,-1246.3633672,0.00019176,2]
[320699327,1711509038687,-2131.2575595,0.00019176,2]
[320699392,1711509043898,-7749.0939687,0.00019176,2]
[320699434,1711509209645,162.85974,0.00018177,2]
[320699435,1711509553595,2000.0,0.0001832,2]
[320699436,1711509636257,72913.927489,0.00025108,120]
[320699437,1711509721553,1873.0131573,0.00018177,2]
[320699454,1711510088791,703.65570977,0.00018,3]
[320699497,1711510231952,-490.5000166,0.00018497,2]
[320699500,1711510231965,-1509.4999834,0.00018497,2]
[320699502,1711510231974,-565.65352026,0.00019077,2]
[320699504,1711510231983,-246.30444374,0.00019078,2]
[320699506,1711510231992,-235.0,0.00019175,2]
[320699508,1711510232001,-5167.55400694,0.00019176,2]
[320699546,1711510237954,-1998.10887097,0.00019176,2]
[320699552,1711510239845,-425.97721355,0.00019176,2]
[320699553,1711510239855,-305.49092723,0.00019176,2]
[320699554,1711510239864,-769.52819583,0.00019177,2]
[320699555,1711510239875,-457.82695484,0.00019178,2]
[320699556,1711510239885,-504.33585088,0.00019178,2]
[320699557,1711510239894,-395.12095246,0.00019178,2]
[320699558,1711510239903,-334.49180419,0.00019178,2]
[320699559,1711510239913,-500.0,0.00019178,2]
[320699560,1711510239922,-501.05316777,0.00019178,2]
[320699561,1711510239931,-337.68108245,0.00019178,2]
[320699569,1711510242984,-198.06891755,0.00019178,2]
[320699570,1711510242994,-204.79446842,0.00019178,2]
[320699571,1711510243042,-295.20553158,0.00019178,2]
[320699572,1711510243052,-282.95881773,0.00019178,2]
[320699573,1711510243062,-500.0,0.00019178,2]
[320699574,1711510243071,-191.83565069,0.00019178,2]
[320699636,1711510246285,-287.53568905,0.00019178,2]
[320699637,1711510246294,-63.5690693,0.00019178,2]
[320699665,1711510900734,24890.0,0.0001823,2]
[320699666,1711510945688,849.919869,0.00018418,2]
[320699667,1711510946200,2034.465773,0.00018418,2]
[320699727,1711511437840,-849.919869,0.00018648,2]
[320699729,1711511437863,-2034.465773,0.00018648,2]
[320699731,1711511437886,-2000.0,0.00018672,2]
[320699734,1711511437908,-2034.465773,0.00018878,2]
[320699736,1711511437930,-849.919869,0.00018878,2]
[320699739,1711511437952,-255.97930613,0.000189,2]
[320699743,1711511438005,-486.03346757,0.00019078,2]
[320699748,1711511438064,-2948.31258117,0.00019078,2]
[320699916,1711511440142,-2098.55409019,0.00019078,2]
[320699917,1711511440155,-175745.90952258,0.00019078,2]
[320699918,1711511440170,-18047.04896422,0.00019078,2]
[320699921,1711511440185,-3315.47452844,0.00019078,2]
[320699923,1711511440200,-24845.47649415,0.00019078,2]
[320699925,1711511440211,-2034.465773,0.00019109,2]
[320699927,1711511440223,-849.919869,0.00019109,2]
[320699928,1711511440236,-200.80874792,0.00019177,2]
[320699930,1711511440247,-500.0,0.00019178,2]
[320699931,1711511440259,-500.0,0.00019178,2]
[320699933,1711511440272,-500.0,0.00019178,2]
[320699935,1711511440283,-500.8859857,0.00019178,2]
[320699936,1711511440293,-500.0,0.00019178,2]
[320699938,1711511440303,-500.0,0.00019178,2]
[320699940,1711511440314,-500.0,0.00019178,2]
[320699941,1711511440326,-500.0,0.00019178,2]
[320699942,1711511440337,-500.0,0.00019178,2]
[320699943,1711511440348,-500.0,0.00019178,2]
[320699944,1711511440361,-500.11545054,0.00019178,2]
[320699945,1711511440373,-500.0,0.00019178,2]
[320699946,1711511440385,-364.90939504,0.00019178,2]
[320699947,1711511440396,-500.0,0.00019178,2]
[320699948,1711511440408,-500.0,0.00019178,2]
[320699949,1711511440421,-714.54,0.00019178,2]
[320699950,1711511440432,-539.39,0.00019178,2]
[320699951,1711511440443,-500.0,0.00019178,2]
[320699952,1711511440455,-65.98780499,0.00019178,2]
[320699963,1711511443297,-434.01219501,0.00019178,2]
[320699964,1711511443310,-500.0,0.00019178,2]
[320699965,1711511443322,-500.13887343,0.00019178,2]
[320699966,1711511443334,-500.0,0.00019178,2]
[320699967,1711511443347,-500.0,0.00019178,2]
[320699968,1711511443358,-500.0,0.00019178,2]
[320699969,1711511443370,-500.76792345,0.00019178,2]
[320699970,1711511443383,-500.0,0.00019178,2]
[320699971,1711511443395,-500.08515452,0.00019178,2]
[320699972,1711511443406,-500.0,0.00019178,2]
[320699973,1711511443417,-500.0,0.00019178,2]
[320699974,1711511443429,-502.52066474,0.00019178,2]
[320699975,1711511443439,-500.0,0.00019178,2]
[320699976,1711511443450,-500.0,0.00019178,2]
[320699977,1711511443461,-500.0,0.00019178,2]
[320699978,1711511443471,-1997.94,0.00019178,2]
[320699979,1711511443482,-500.0,0.00019178,2]
[320699980,1711511443493,-500.0,0.00019178,2]
[320699981,1711511443503,-500.0,0.00019178,2]
[320699982,1711511443514,-1759.67,0.00019178,2]
[320699983,1711511443524,-500.0,0.00019178,2]
[320699984,1711511443534,-500.0,0.00019178,2]
[320699985,1711511443544,-500.0,0.00019178,2]
[320699986,1711511443554,-500.0,0.00019178,2]
[320699987,1711511443565,-500.10275586,0.00019178,2]
[320699988,1711511443575,-500.0,0.00019178,2]
[320699989,1711511443586,-500.0,0.00019178,2]
[320699990,1711511443596,-500.64554874,0.00019178,2]
[320699991,1711511443607,-511.78,0.00019178,2]
[320699992,1711511443618,-520.50265724,0.00019178,2]
[320699993,1711511443629,-500.0,0.00019178,2]
[320699994,1711511443641,-293.46389962,0.00019178,2]
[320699995,1711511443651,-500.82407724,0.00019178,2]
[320699996,1711511443663,-723.3,0.00019178,2]
[320699997,1711511443674,-500.0,0.00019178,2]
[320699998,1711511443685,-500.0,0.00019178,2]
[320699999,1711511443699,-500.0,0.00019178,2]
[320700000,1711511443711,-500.0,0.00019178,2]
[320700001,1711511443724,-500.70484284,0.00019178,2]
[320700002,1711511443735,-500.0,0.00019178,2]
[320700003,1711511443745,-500.0,0.00019178,2]
[320700004,1711511443756,-500.0,0.00019178,2]
[320700005,1711511443768,-500.0,0.00019178,2]
[320700006,1711511443778,-777.38,0.00019178,2]
[320700007,1711511443789,-1160.66,0.00019178,2]
[320700008,1711511443801,-500.0,0.00019178,2]
[320700009,1711511443811,-500.0,0.00019178,2]
[320700010,1711511443823,-500.0,0.00019178,2]
[320700011,1711511443834,-296.45645239,0.00019178,2]
[320700012,1711511443845,-500.0,0.00019178,2]
[320700013,1711511443856,-500.0,0.00019178,2]
[320700014,1711511443867,-500.0,0.00019178,2]
[320700015,1711511443878,-500.0,0.00019178,2]
[320700016,1711511443888,-500.0,0.00019178,2]
[320700017,1711511443899,-500.0,0.00019178,2]
[320700018,1711511443910,-500.0,0.00019178,2]
[320700019,1711511443921,-500.0,0.00019178,2]
[320700020,1711511443933,-500.0,0.00019178,2]
[320700021,1711511443943,-500.0,0.00019178,2]
[320700022,1711511443953,-500.0,0.00019178,2]
[320700023,1711511443963,-500.0,0.00019178,2]
[320700024,1711511443973,-500.0,0.00019178,2]
[320700025,1711511444134,-418.32908891,0.00019178,2]
[320700026,1711511444145,-500.74404679,0.00019178,2]
[320700027,1711511444154,-500.0,0.00019178,2]
[320700028,1711511444164,-529.45,0.00019178,2]
[320700029,1711511444176,-500.0,0.00019178,2]
[320700030,1711511444186,-500.816058,0.00019178,2]
[320700031,1711511444196,-500.0,0.00019178,2]
[320700032,1711511444205,-501.21205396,0.00019178,2]
[320700033,1711511444215,-513.43,0.00019178,2]
[320700034,1711511444225,-500.76543446,0.00019178,2]
[320700035,1711511444234,-842.47,0.00019178,2]
[320700036,1711511444245,-500.0,0.00019178,2]
[320700037,1711511444254,-305.50304525,0.00019178,2]
[320700038,1711511444264,-501.03826764,0.00019178,2]
[320700039,1711511444273,-572.33428495,0.00019178,2]
[320700040,1711511444283,-546.48,0.00019178,2]
[320700041,1711511444291,-500.0,0.00019178,2]
[320700042,1711511444302,-501.34651295,0.00019178,2]
[320700043,1711511444311,-500.0,0.00019178,2]
[320700044,1711511444320,-500.0,0.00019178,2]
[320700045,1711511444329,-507.72,0.00019178,2]
[320700046,1711511444338,-528.0167846,0.00019178,2]
[320700047,1711511444348,-500.0,0.00019178,2]
[320700048,1711511444358,-500.0,0.00019178,2]
[320700049,1711511444367,-502.39,0.00019178,2]
[320700050,1711511444376,-500.0,0.00019178,2]
[320700051,1711511444385,-500.0,0.00019178,2]
[320700052,1711511444395,-500.0,0.00019178,2]
[320700053,1711511444404,-2089.94,0.00019178,2]
[320700054,1711511444414,-4275.94,0.00019178,2]
[320700055,1711511444426,-500.0,0.00019178,2]
[320700056,1711511444435,-500.0,0.00019178,2]
[320700057,1711511444445,-500.0,0.00019178,2]
[320700058,1711511444455,-500.85564148,0.00019178,2]
[320700059,1711511444465,-500.0,0.00019178,2]
[320700060,1711511444474,-500.0,0.00019178,2]
[320700061,1711511444483,-500.0,0.00019178,2]
[320700062,1711511444492,-659.14,0.00019178,2]
[320700063,1711511444502,-558.38,0.00019178,2]
[320700064,1711511444512,-500.90656125,0.00019178,2]